bitfinex/quotes_ETHUSD_20260310
["timestamp","ask_amount","ask_price","bid_price","bid_amount"]
[1773151947946,0.57846603,2020.3,2019.0,1.23823675]
[1773151948329,1.81572229,2020.6,2019.1,0.633329]
[1773151948504,0.57846603,2020.3,2019.0,1.23823675]
[1773151948921,2.46143343,2020.1,2019.0,1.23823675]
[1773151949117,2.46143343,2020.1,2019.4,0.0011]
[1773151949651,2.46143343,2020.1,2019.2,0.0011]
[1773151949842,0.57846603,2020.0,2019.2,0.0011]
[1773151950703,2.46143343,2019.8,2019.2,0.0011]
[1773151950898,1.23780759,2019.7,2019.2,0.0011]
[1773151951130,4.95089171,2019.9,2019.2,0.0011]
[1773151951313,1.23768503,2019.9,2019.2,0.0011]
[1773151951632,4.94982817,2020.3,2019.2,0.0011]
[1773151951846,0.57846603,2020.4,2019.2,0.0011]
[1773151952019,1.23743998,2020.3,2019.2,0.58490199]
[1773151952209,1.81590601,2020.3,2019.2,0.0011]
[1773151952603,1.23743998,2020.3,2019.2,0.0011]
[1773151952943,1.23743998,2020.3,2019.2,1.2392141]
[1773151953437,1.23743998,2020.3,2019.2,1.82301609]
[1773151953945,1.23741068,2020.4,2019.3,0.58706822]
[1773151954144,7.98875317,2020.7,2019.3,0.58706822]
[1773151954145,1.23728211,2020.6,2019.3,0.58706822]
[1773151954435,0.05922295,2020.5,2019.3,0.58706822]
[1773151954934,1.23728211,2020.6,2019.5,1.23793018]
[1773151955118,1.23728211,2020.6,2019.6,0.58706822]
[1773151955430,0.05922295,2020.5,2019.6,0.63658296]
[1773151955606,2.51133501,2020.6,2019.6,1.048]
[1773151955805,0.05922295,2020.6,2019.6,1.048]
[1773151956123,2.45211206,2020.4,2019.6,1.048]
[1773151956325,0.05922295,2020.3,2019.6,1.048]
[1773151956512,0.05922295,2020.3,2019.4,4.95172072]
[1773151956513,2.45211206,2020.3,2019.4,1.23794357]
[1773151956716,2.45211206,2020.0,2019.3,2.2860208]
[1773151956943,1.23768503,2019.9,2019.3,1.048]
[1773151957114,1.23768503,2019.9,2019.3,2.28605132]
[1773151957616,1.23768503,2019.9,2019.3,1.23804232]
[1773151957818,1.23768503,2019.9,2019.2,1.2391662]
[1773151958035,1.29688236,2020.0,2019.2,1.2391662]
[1773151958341,1.23760882,2020.1,2019.3,0.04867752]
[1773151958537,3.68955204,2020.4,2019.3,0.04867752]
[1773151958736,3.68955204,2020.4,2019.3,0.63574574]
[1773151958940,1.23762376,2020.0,2019.2,0.0011]
[1773151959142,1.29684671,2020.0,2019.3,1.23800833]
[1773151959314,1.29684671,2020.0,2019.2,1.23918057]
[1773151959520,2.45211206,2019.9,2019.2,1.23918057]
[1773151960112,2.51133501,2019.9,2019.2,1.23918057]
[1773151960508,2.45211206,2019.3,2018.9,0.0011]
[1773151960709,2.45211206,2019.6,2018.9,0.0011]
[1773151960906,1.23793018,2019.5,2018.9,0.0011]
[1773151961212,3.68998241,2019.6,2018.9,0.0011]
[1773151961417,2.45211206,2019.3,2018.8,1.048]
[1773151961928,2.45211206,2019.0,2018.3,2.2866662]
[1773151962611,2.45211206,2019.0,2018.6,0.0011]
[1773151962810,2.45211206,2019.3,2018.6,0.0011]
[1773151963011,1.2381141,2019.2,2018.6,0.0011]
[1773151963347,2.45211206,2019.0,2018.6,0.0011]
[1773151963732,2.45211206,2018.7,2018.3,0.0184972]
[1773151963937,2.45211206,2018.7,2018.1,2.28678642]
[1773151964131,2.45211206,2019.0,2018.2,0.0495491]
[1773151964333,2.45211206,2019.0,2018.1,2.28678642]
[1773151965060,1.23829808,2018.9,2018.3,1.2386662]
[1773151965256,1.23829808,2018.9,2018.4,0.02540328]
[1773151965454,3.69035046,2019.0,2018.4,0.02540328]
[1773151965655,3.69035046,2019.0,2018.3,1.2386662]
[1773151966158,3.69035046,2019.0,2018.2,1.23867925]
[1773151966365,3.69035046,2019.0,2018.1,1.048]
[1773151966574,2.45211206,2018.2,2017.7,2.28700389]
[1773151966804,2.45211206,2018.4,2017.7,2.28700389]
[1773151967065,2.45211206,2018.4,2017.8,0.03828669]
[1773151967281,2.45211206,2018.7,2017.9,1.23891173]
[1773151967431,1.23840569,2018.8,2017.9,1.23891173]
[1773151967432,2.45211206,2018.5,2017.9,1.23891173]
[1773151967812,1.23829808,2018.9,2018.0,0.02578619]
[1773151968018,1.23829808,2018.9,2018.0,0.59596087]
[1773151968434,3.69038957,2019.0,2018.0,0.57017468]
[1773151969321,2.45211206,2019.3,2018.2,0.57017468]
[1773151969555,2.45211206,2019.1,2018.2,0.57017468]
[1773151970045,2.45211206,2019.1,2018.3,1.048]
[1773151970419,2.45211206,2018.5,2017.9,1.048]
[1773151971041,2.45211206,2018.5,2018.0,0.04955401]
[1773151971354,1.23860483,2018.4,2017.9,1.048]
[1773151971650,2.45758415,2018.3,2017.8,1.23896923]
[1773151972058,2.45758415,2018.6,2017.6,4.95624255]
[1773151972229,3.69610635,2018.6,2017.7,0.57017468]
[1773151972432,2.45758415,2018.6,2017.7,0.57017468]
[1773151972633,2.45758415,2018.4,2017.7,0.57017468]
[1773151972973,2.45758415,2018.7,2017.7,0.57017468]
[1773151973137,1.29755478,2018.9,2017.7,0.57017468]
[1773151973334,2.45758415,2018.6,2017.7,0.57017468]
[1773151973571,3.69610302,2018.6,2017.8,1.23897313]
[1773151974177,1.23840736,2018.8,2018.0,0.0011]
[1773151974463,2.45758415,2019.3,2018.2,0.57017468]
[1773151974664,1.29715573,2019.5,2018.3,0.57017468]
[1773151975034,0.05922295,2019.5,2018.3,0.57017468]
[1773151975234,2.45758415,2019.6,2018.3,0.57017468]
[1773151975439,2.45758415,2019.6,2018.5,0.57017468]
[1773151975780,0.05922295,2019.8,2018.5,0.57017468]
[1773151976064,0.001,2020.1,2018.5,0.57017468]
[1773151976065,1.23763305,2020.0,2018.5,0.57017468]
[1773151976281,2.5168071,2019.9,2018.5,0.57017468]
[1773151976438,2.45758415,2019.6,2018.5,0.57017468]
[1773151976640,2.45758415,2019.6,2018.6,0.57017468]
[1773151976875,2.45758415,2019.6,2018.7,1.047]
[1773151977069,2.45758415,2019.6,2018.7,1.61717468]
[1773151977278,2.5168071,2019.9,2018.8,0.57017468]
[1773151977577,2.45758415,2019.6,2018.9,1.23829808]
[1773151978438,1.23774631,2019.8,2018.8,5.52336701]
[1773151978439,2.45758415,2019.4,2018.8,1.80849401]
[1773151978857,2.45758415,2019.7,2018.8,1.80849401]
[1773151979670,2.45758415,2019.7,2018.9,0.57017468]
[1773151979892,1.29689151,2020.0,2018.9,0.57017468]
[1773151980085,2.45758415,2019.9,2018.9,0.57017468]
[1773151980471,1.23860473,2020.1,2018.9,0.57017468]
[1773151980472,1.29779237,2020.1,2018.9,0.57017468]
[1773151980676,2.45758415,2019.7,2018.8,1.23831933]
[1773151981200,1.23856942,2020.1,2018.9,0.57017468]
[1773151981373,2.45758415,2019.7,2018.9,0.57017468]
[1773151981704,2.45758415,2019.1,2018.3,2.28560483]
[1773151981931,6.78208541,2019.6,2018.1,1.23876546]
[1773151981932,2.45758415,2018.8,2018.1,1.23876546]
[1773151982198,2.45758415,2018.8,2018.0,1.23991291]
[1773151982410,2.45758415,2018.6,2018.0,1.23991291]
[1773151982704,2.45758415,2018.6,2018.0,0.0011]
[1773151983070,2.45758415,2018.3,2017.8,1.0481]
[1773151983271,6.58099358,2019.0,2017.8,2.28707128]
[1773151983498,2.45758415,2018.7,2017.8,2.28707128]
[1773151983802,2.45758415,2018.4,2017.8,2.28707128]
[1773151984682,1.23848211,2018.6,2017.8,2.28707128]
[1773151985087,1.23848211,2018.6,2017.6,1.23905622]
[1773151985088,2.45758415,2018.4,2017.6,1.23905622]
[1773151985292,2.45758415,2018.4,2017.5,4.95759499]
[1773151985293,2.45758415,2018.1,2017.5,1.24020854]
[1773151985496,2.45758415,2018.1,2017.4,1.047]
[1773151985820,3.69658726,2017.8,2017.0,1.23946455]
[1773151986178,1.23888629,2018.0,2017.1,0.59600652]
[1773151986379,2.45758415,2017.8,2016.9,2.28648961]
[1773151986805,1.2386662,2018.3,2018.0,0.0011]
[1773151987000,2.45758415,2018.2,2017.0,0.59600652]
[1773151987198,2.45758415,2017.8,2017.0,0.59600652]
[1773151987606,2.45758415,2017.8,2017.5,0.0011]
[1773151987791,2.45758415,2017.8,2017.1,1.2394031]
[1773151987992,2.3346662,2018.3,2017.2,0.59600652]
[1773151988209,3.69620952,2018.4,2017.2,0.59600652]
[1773151988948,2.45758415,2017.9,2017.1,1.2394031]
[1773151989218,2.45758415,2017.9,2016.9,2.28647818]
[1773151989421,2.45758415,2017.6,2016.9,2.28647818]
[1773151989720,2.45758415,2017.9,2016.9,2.28647818]
[1773151989880,1.23897313,2017.8,2016.9,2.28647818]
[1773151990194,2.45758415,2017.9,2016.9,2.8824847]
[1773151990390,3.69651945,2017.9,2016.9,2.8824847]
[1773151990782,3.69649772,2017.9,2016.9,2.8824847]
[1773151991401,2.45758415,2017.6,2016.9,2.8824847]
[1773151991800,3.69649772,2017.9,2016.9,2.8824847]
[1773151992909,2.45758415,2017.9,2016.9,2.8824847]
[1773151993081,2.45758415,2017.9,2017.0,0.59600652]
[1773151993281,1.23848211,2018.6,2017.2,0.59600652]
[1773151993497,0.05922295,2018.5,2017.2,0.59600652]
[1773151994098,2.45758415,2018.3,2017.4,0.59600652]
[1773151994335,2.5168071,2018.3,2017.4,0.59600652]
[1773151994487,2.45758415,2018.3,2017.4,0.59600652]
[1773151994888,3.69611434,2018.6,2017.4,0.59600652]
[1773151995090,5.52565748,2018.7,2017.4,0.59600652]
[1773151995091,0.001,2018.7,2017.5,0.59600652]
[1773151995399,0.001,2018.7,2017.6,0.59600652]
[1773151996221,0.001,2018.7,2017.8,0.59600652]
[1773151996428,0.05922295,2019.2,2018.0,0.59600652]
[1773151996607,1.23794154,2019.5,2018.2,0.59600652]
[1773151996790,2.45758415,2019.3,2018.2,0.59600652]
[1773151996993,2.45758415,2019.6,2018.2,0.59600652]
[1773151997193,3.75470892,2019.6,2018.2,0.59600652]
[1773151997546,2.45758415,2019.9,2018.4,0.59600652]
[1773151997689,4.94889179,2020.7,2018.4,0.59600652]
[1773151997690,5.51940972,2020.9,2019.3,0.59600652]
[1773151997889,2.45758415,2019.9,2018.9,1.046]
[1773151998188,2.45758415,2019.6,2019.0,1.23823675]
[1773151998522,2.45758415,2019.6,2018.8,1.046]
[1773151998825,2.45758415,2019.3,2018.3,2.2846662]
[1773151998994,2.45758415,2019.3,2018.3,1.2386662]
[1773151999200,2.45758415,2019.0,2018.3,1.2386662]
[1773151999399,2.45758415,2019.0,2018.2,1.83469372]
[1773151999713,2.45758415,2018.7,2018.0,1.0471]
[1773152000263,3.69605895,2018.7,2018.0,1.0471]
[1773152000547,3.69605895,2018.7,2018.0,0.0011]
[1773152000894,3.69605895,2018.7,2018.0,1.23994773]
[1773152001101,9.86812376,2019.0,2018.0,1.23994773]
[1773152001102,2.45758415,2019.2,2018.1,0.04955155]
[1773152001323,4.95223595,2019.3,2018.1,0.04955155]
[1773152001324,2.45758415,2018.9,2018.1,0.04955155]
[1773152001529,2.45758415,2018.9,2018.0,1.83595425]
[1773152001731,2.45758415,2019.0,2018.1,0.04955155]
[1773152002633,2.45758415,2019.0,2018.2,1.23872757]
[1773152002836,3.69582118,2019.0,2018.3,0.04954664]
[1773152003011,2.45758415,2018.7,2018.0,1.23993879]
[1773152003211,0.001,2019.4,2018.4,0.59600652]
[1773152003437,0.001,2019.4,2018.6,0.59600652]
[1773152004504,0.001,2019.4,2018.8,0.59600652]
[1773152005226,0.001,2019.4,2018.7,1.23842076]
[1773152005829,0.001,2019.4,2018.6,1.23844638]
[1773152006246,0.001,2019.4,2018.5,1.83450362]
[1773152006442,2.45758415,2019.1,2018.4,1.045]
[1773152006743,1.23823675,2019.0,2018.4,2.28360076]
[1773152006946,3.69580098,2019.1,2018.4,2.28360076]
[1773152007240,3.69580098,2019.1,2018.4,1.045]
[1773152007441,3.69580098,2019.1,2018.4,2.28357151]
[1773152007642,3.69580098,2019.1,2018.3,1.23862732]
[1773152007810,3.69580098,2019.1,2018.4,0.04954419]
[1773152008212,3.69580098,2019.1,2018.3,1.23862732]
[1773152008419,2.45758415,2019.1,2018.3,1.83463384]
[1773152008622,3.69576991,2019.1,2018.3,1.83463384]
[1773152008825,3.69576801,2019.1,2018.3,1.83463384]
[1773152009038,3.69576178,2019.1,2018.4,0.02992403]
[1773152009544,2.45758415,2018.8,2018.0,1.23992417]
[1773152009844,3.69576178,2019.1,2018.0,1.83593069]
[1773152010031,3.69576178,2019.1,2018.1,0.64555807]
[1773152010220,2.45758415,2019.0,2018.1,0.64555807]
[1773152010745,3.69583519,2019.0,2018.2,1.23872757]
[1773152010951,2.45758415,2018.7,2018.0,1.23989507]
[1773152011137,3.69583519,2019.0,2017.8,0.0011]
[1773152011138,2.45758415,2018.1,2017.8,0.0011]
[1773152011346,2.45758415,2018.1,2017.7,0.04956138]
[1773152011524,2.45758415,2018.4,2017.6,0.04956141]
[1773152011719,2.45758415,2018.4,2018.2,0.0011]
[1773152011971,2.45758415,2018.4,2017.5,0.0011]
[1773152011972,7.37275245,2018.4,2017.5,0.0011]
[1773152012122,2.45758415,2017.8,2017.2,1.23934134]
[1773152012562,2.45758415,2018.1,2017.7,0.0011]
[1773152012735,1.23880284,2018.1,2017.2,1.83534786]
[1773152013047,2.45758415,2017.9,2017.1,1.23936066]
[1773152013277,2.45758415,2017.9,2016.9,4.95786482]
[1773152013621,2.45758415,2017.9,2017.0,0.60931305]
[1773152013820,1.2386662,2018.3,2017.1,0.65888917]
[1773152014019,2.45758415,2018.1,2017.1,0.65888917]
[1773152014443,2.45758415,2018.4,2017.1,0.65888917]
[1773152014622,3.69623774,2018.4,2017.1,0.65888917]
[1773152014821,3.69623774,2018.4,2017.3,0.60931305]
[1773152015021,3.69623774,2018.4,2017.4,0.6588818]
[1773152015222,2.45758415,2018.1,2017.4,0.6588818]
[1773152015520,1.09,2018.7,2017.4,0.6588818]
[1773152015521,1.23842076,2018.7,2017.4,0.6588818]
[1773152015831,2.45758415,2018.2,2017.4,0.6588818]
[1773152016760,1.2386662,2018.3,2017.5,1.23915737]
[1773152017089,3.69619749,2018.4,2017.6,0.04956383]
[1773152017578,3.69619257,2018.4,2017.6,0.04956383]
[1773152018066,1.2880639,2018.6,2017.6,0.65887688]
[1773152018272,2.45758415,2018.3,2017.6,0.60931305]
[1773152018772,3.69628833,2018.3,2017.6,1.84838662]
[1773152018979,3.69628833,2018.3,2016.9,0.60931305]
[1773152019280,1.23870418,2018.3,2017.3,1.043]
[1773152019599,1.23870418,2018.3,2017.3,1.65231305]
[1773152019902,1.23870418,2018.3,2017.4,0.60931305]
[1773152020065,3.74579822,2018.4,2017.4,0.60931305]
[1773152020261,2.50714556,2018.4,2017.4,0.60931305]
[1773152020462,2.45758415,2018.4,2017.5,0.65887934]
[1773152020663,3.69619394,2018.4,2017.5,0.60931305]
[1773152020975,3.74575535,2018.4,2017.6,1.848409]
[1773152021287,3.74575535,2018.4,2017.3,2.28223411]
[1773152021489,2.45758415,2018.1,2017.3,2.28223411]
[1773152021792,3.74575535,2018.4,2017.4,0.60931305]
[1773152022479,3.69619394,2018.4,2017.4,0.60931305]
[1773152022790,1.23872757,2018.2,2017.5,0.04956629]
[1773152022989,1.23872757,2018.2,2017.4,0.60931305]
[1773152023287,1.23872757,2018.2,2017.4,1.84851176]
[1773152023458,3.69623622,2018.4,2017.5,0.65887934]
[1773152023661,2.45758415,2018.4,2017.5,0.65887934]
[1773152024300,2.50714556,2018.4,2017.5,0.65887934]
[1773152024586,3.74576205,2018.4,2017.5,0.65887934]
[1773152024792,3.74576205,2018.4,2017.5,0.60931305]
[1773152024987,0.001,2018.2,2017.6,1.23909595]
[1773152025187,0.05056141,2018.2,2017.6,1.23909595]
[1773152025391,0.001,2018.2,2017.7,0.04956138]
[1773152026090,0.001,2018.2,2017.6,1.848409]
[1773152026389,0.001,2018.2,2017.7,0.04956138]
[1773152026557,0.001,2018.2,2017.4,4.95662949]
[1773152026758,0.001,2018.2,2017.4,5.56615156]
[1773152026965,2.45758415,2018.1,2017.4,1.84874086]
[1773152027164,0.04956141,2018.0,2017.3,2.28025466]
[1773152027890,0.05056141,2018.2,2017.4,0.60952207]
[1773152028089,0.001,2018.2,2017.4,0.60952207]
[1773152029015,0.001,2018.2,2017.6,0.60952207]
[1773152029199,0.001,2018.2,2017.7,0.04956138]
[1773152029526,0.001,2018.2,2017.6,0.60952207]
[1773152030313,0.001,2018.2,2017.4,1.23919]
[1773152030516,0.001,2018.2,2017.3,2.88975468]
[1773152030713,0.001,2018.2,2017.3,1.041]
[1773152031016,0.001,2018.2,2017.1,1.85002517]
[1773152031187,2.45758415,2018.0,2017.1,2.89102517]
[1773152031388,2.45758415,2018.0,2017.2,0.60952207]
[1773152032380,2.45758415,2018.0,2017.3,0.0495712]
[1773152032585,2.45758415,2018.0,2017.2,0.60952207]
[1773152032785,0.001,2018.2,2017.3,0.65909327]
[1773152033027,0.001,2018.2,2017.4,1.23921879]
[1773152033330,0.001,2018.2,2017.4,1.84874086]
[1773152033818,2.45892991,2018.2,2017.4,1.84874086]
[1773152034016,0.04956141,2018.1,2017.5,0.60952207]
[1773152034215,0.05056141,2018.2,2017.5,0.60952207]
[1773152034703,0.05056141,2018.2,2017.6,0.04956383]
[1773152034890,0.001,2018.2,2017.7,0.60952207]
[1773152035091,0.001,2018.2,2017.8,0.04955892]
[1773152036643,0.001,2018.2,2018.0,0.60952207]
[1773152036853,0.001,2018.2,2017.8,1.28850357]
[1773152037016,0.001,2018.2,2017.8,1.84846672]
[1773152037342,0.001,2018.2,2017.9,0.60952207]
[1773152037528,1.288028,2018.7,2017.9,0.60952207]
[1773152037959,0.001,2018.0,2017.8,1.64952207]
[1773152038116,0.001,2018.0,2017.6,1.24015944]
[1773152038312,0.001,2018.0,2017.6,1.2401929]
[1773152038624,0.001,2018.0,2017.6,1.84971497]
[1773152039016,0.001,2018.0,2017.6,0.61062207]
[1773152040042,0.001,2018.0,2017.6,1.84967007]
[1773152040230,0.001,2018.0,2017.7,0.60952207]
[1773152040434,1.23842076,2018.7,2017.7,0.60952207]
[1773152040652,4.87770483,2019.3,2017.9,0.60952207]
[1773152040859,0.04956141,2019.2,2018.1,0.60952207]
[1773152041223,2.45792991,2019.0,2018.2,1.84824964]
[1773152041415,0.04956141,2018.9,2018.2,1.84824964]
[1773152041819,0.04956141,2018.9,2018.2,0.60952207]
[1773152042027,2.45792991,2018.4,2017.6,0.61062207]
[1773152042333,0.04956141,2018.3,2017.6,0.61062207]
[1773152042535,2.45792991,2018.1,2017.6,0.0011]
[1773152042715,0.04956141,2018.3,2017.6,1.84971476]
[1773152043041,0.04956141,2018.3,2017.6,1.24017879]
[1773152043217,1.23872757,2018.2,2017.6,0.0011]
[1773152043417,0.04956141,2018.1,2017.6,0.0011]
[1773152045345,1.28835773,2018.1,2017.6,0.0011]
[1773152045548,1.28835773,2018.1,2017.6,0.05066383]
[1773152045848,2.45792991,2018.0,2017.6,0.0011]
[1773152046048,2.45792991,2018.0,2017.4,0.0011]
[1773152046543,1.28835773,2018.1,2017.4,0.05066875]
[1773152047180,1.23879632,2018.1,2017.4,0.05066875]
[1773152047446,1.28835773,2018.1,2017.4,0.05066875]
[1773152047653,2.45792991,2017.9,2017.4,0.0011]
[1773152047846,2.45792991,2017.9,2017.4,0.04315339]
[1773152048145,3.74628764,2018.1,2017.4,0.62190579]
[1773152048354,2.45792991,2017.8,2017.1,2.85925357]
[1773152048569,2.45792991,2017.8,2017.1,2.8592541]
[1773152049560,2.45792991,2017.5,2017.1,0.0011]
[1773152049861,1.23903454,2017.7,2017.1,0.0011]
[1773152050166,1.23903454,2017.7,2016.9,0.0011]
[1773152050167,2.45792991,2017.3,2016.9,0.0011]
[1773152050464,2.45792991,2017.0,2016.6,0.0011]
[1773152050631,2.45792991,2016.7,2016.1,0.5787524]
[1773152051001,2.45792991,2016.7,2016.1,1.81873567]
[1773152051165,2.45792991,2016.7,2016.1,0.5787524]
[1773152051357,2.45792991,2017.2,2016.2,0.5787524]
[1773152051558,1.2394031,2017.1,2016.3,0.5787524]
[1773152051885,1.2394031,2017.1,2016.4,0.01497839]
[1773152052089,2.45792991,2016.9,2016.4,0.01497839]
[1773152052476,1.2394031,2017.1,2016.4,0.01497839]
[1773152052994,4.78131931,2017.2,2016.4,0.5787524]
[1773152053657,4.78131931,2017.2,2016.4,0.60164109]
[1773152053887,4.78131931,2017.2,2016.4,0.5787524]
[1773152054098,3.69731931,2017.2,2016.5,0.5787524]
[1773152054298,2.45792991,2017.2,2016.5,0.62834327]
[1773152054464,3.69694343,2017.8,2016.7,0.5787524]
[1773152054795,0.04956141,2017.7,2016.9,0.5787524]
[1773152055163,3.54292991,2017.9,2017.0,0.62833098]
[1773152055581,2.45892991,2017.9,2017.2,0.5787524]
[1773152055791,2.45892991,2017.9,2017.3,0.59109749]
[1773152056090,2.45892991,2017.9,2017.0,4.95761241]
[1773152056091,2.470275,2017.8,2017.0,1.81821138]
[1773152056266,0.001,2017.9,2017.1,0.5787524]
[1773152056468,0.01334509,2017.9,2017.1,0.5787524]
[1773152056796,0.001,2017.9,2017.3,0.5787524]
[1773152057292,0.001,2017.9,2016.8,4.9578582]
[1773152057293,3.69786783,2017.9,2017.2,0.5787524]
[1773152057480,2.45792991,2017.6,2017.2,0.5787524]
[1773152057887,2.45792991,2017.6,2017.3,0.0495712]
[1773152058194,0.001,2017.9,2017.3,0.6283236]
[1773152058693,0.001,2017.9,2017.2,1.2393265]
[1773152058694,0.01234509,2018.1,2017.4,0.5787524]
[1773152058898,2.45792991,2018.2,2017.4,0.5787524]
[1773152059098,0.01234509,2018.1,2017.2,1.23933578]
[1773152059283,2.45792991,2017.9,2017.1,0.5787524]
[1773152059504,0.01234509,2017.8,2017.1,0.5787524]
[1773152060020,0.01234509,2017.8,2017.2,0.5787524]
[1773152060191,0.01234509,2017.8,2016.6,0.5787524]
[1773152060192,2.45792991,2017.4,2016.6,0.5787524]
[1773152060396,0.01234509,2017.3,2016.6,0.5787524]
[1773152060707,2.45792991,2017.1,2016.6,0.5787524]
[1773152060874,2.45792991,2017.1,2016.3,0.5798524]
[1773152061194,2.45792991,2017.1,2016.3,1.81970568]
[1773152061996,1.23940108,2017.2,2016.4,0.5787524]
[1773152062215,0.01234509,2017.2,2016.4,0.5787524]
[1773152062898,0.01234509,2017.3,2016.6,0.5787524]
[1773152063208,0.01234509,2017.3,2016.7,0.60640676]
[1773152063410,0.01234509,2017.5,2016.7,0.5787524]
[1773152063578,0.01234509,2017.6,2016.7,0.5787524]
[1773152063788,2.45792991,2017.5,2016.7,0.5787524]
[1773152064116,0.01234509,2017.4,2016.8,0.04958349]
[1773152064613,9.87192083,2017.8,2016.8,1.86789028]
[1773152064614,2.45792991,2017.8,2016.8,1.86789028]
[1773152064817,1.23908124,2017.7,2016.9,0.5787524]
[1773152064970,0.01234509,2017.6,2017.0,0.62833097]
[1773152065404,0.01234509,2017.6,2017.0,0.5787524]
[1773152065769,2.470275,2017.7,2017.0,0.5787524]
[1773152065994,2.470275,2017.7,2017.1,0.04957612]
[1773152067138,2.45792991,2017.4,2016.7,0.5787524]
[1773152067300,0.01234509,2017.3,2016.7,0.5787524]
[1773152067816,0.01234509,2017.3,2016.8,0.04958349]
[1773152068017,1.23908266,2017.7,2016.8,0.62833589]
[1773152068219,0.01234509,2017.6,2016.8,0.62833589]
[1773152068598,0.01234509,2017.6,2016.8,0.5787524]
[1773152068793,0.01234509,2017.6,2016.6,0.0011]
[1773152068794,2.45792991,2017.4,2016.6,1.24079627]
[1773152069014,1.23934166,2017.2,2016.7,0.04958595]
[1773152069211,1.23934166,2017.2,2016.6,0.0011]
[1773152069212,2.45792991,2017.1,2016.6,0.0011]
[1773152069625,2.45792991,2016.7,2016.3,0.0011]
[1773152071125,1.2397104,2016.6,2016.3,0.0011]
[1773152071637,1.23946455,2017.0,2016.3,0.0011]
[1773152071845,2.45792991,2017.2,2016.3,0.62944818]
[1773152072139,0.06193104,2017.1,2016.3,0.62944818]
[1773152072348,0.06193104,2017.2,2016.3,0.62944818]
[1773152072547,0.06193104,2017.2,2016.3,0.5798524]
[1773152073144,3.69721013,2017.3,2016.5,0.5787524]
[1773152073145,0.06193104,2017.3,2016.5,0.5787524]
[1773152073299,2.45792991,2017.5,2016.5,0.5787524]
[1773152073503,0.06193104,2017.4,2016.7,0.5787524]
[1773152073701,2.45792991,2017.2,2016.4,0.54951181]
[1773152073914,0.06193104,2017.1,2016.4,0.54951181]
[1773152074109,2.45792991,2016.9,2016.4,0.54951181]
[1773152074308,2.45792991,2016.9,2016.3,0.0011]
[1773152075321,1.23945169,2017.1,2016.3,0.55061181]
[1773152075514,1.30138273,2017.1,2016.4,0.04959333]
[1773152075838,1.30138273,2017.1,2016.3,0.55061181]
[1773152076217,2.45792991,2016.7,2016.3,0.0011]
[1773152077331,3.6976396,2016.7,2016.1,0.0011]
[1773152077806,3.6976396,2016.7,2016.1,0.55061181]
[1773152078006,1.23958746,2016.8,2016.5,0.0011]
[1773152078207,1.3015185,2016.8,2016.5,0.0011]
[1773152078612,3.69745926,2016.9,2016.5,0.0011]
[1773152078938,0.06193104,2016.8,2016.5,0.0011]
[1773152079635,1.30151895,2016.8,2016.5,0.0011]
[1773152080918,0.001,2017.2,2016.5,0.55061181]
[1773152081132,1.24034245,2017.2,2016.7,0.54951181]
[1773152081517,0.001,2017.2,2016.7,1.78915735]
[1773152081725,0.001,2017.2,2016.8,0.54951181]
[1773152082327,0.001,2017.2,2016.5,1.79034037]
[1773152082530,0.001,2017.2,2016.6,0.54951181]
[1773152083548,0.001,2017.2,2016.7,0.54951181]
[1773152087750,0.001,2017.2,2016.7,0.59909776]
[1773152088123,0.001,2017.2,2016.8,0.5701768]
[1773152088569,0.001,2017.2,2016.9,0.5701768]
[1773152088980,1.23914427,2017.6,2016.9,0.5701768]
[1773152089354,2.45792991,2017.3,2016.5,0.0011]
[1773152089692,2.45792991,2017.0,2016.5,0.0011]
[1773152089883,2.45792991,2017.0,2016.8,0.0011]
[1773152090177,0.001,2017.2,2016.8,0.0011]
[1773152090478,1.24034166,2017.2,2016.8,0.0011]
[1773152090680,2.32534166,2017.2,2016.5,0.0011]
[1773152090887,2.45792991,2017.1,2016.3,0.5701768]
[1773152091377,2.45792991,2017.1,2016.3,0.61977259]
[1773152091744,2.45792991,2017.1,2016.3,0.5701768]
[1773152092146,2.45792991,2017.1,2016.4,0.04959333]
[1773152092452,2.45792991,2017.1,2016.4,0.5701768]
[1773152092850,1.23946455,2017.0,2016.4,0.5701768]
[1773152093784,2.45792991,2016.8,2016.1,1.6032768]
[1773152093987,4.94686904,2016.6,2016.0,0.0011]
[1773152094280,2.45792991,2016.2,2015.8,0.0011]
[1773152094447,2.45792991,2016.6,2015.8,0.0011]
[1773152095260,1.23977188,2016.5,2015.8,0.0011]
[1773152095663,2.46260602,2016.4,2015.8,0.0011]
[1773152096283,1.23977188,2016.5,2015.8,0.5712768]
[1773152096508,2.46260602,2016.4,2015.8,0.5712768]
[1773152097299,1.23989485,2016.3,2015.8,0.5712768]
[1773152097660,1.2383215,2016.3,2015.8,0.5712768]
[1773152098094,1.2383215,2016.3,2015.6,0.0011]
[1773152098307,2.46260602,2016.1,2015.6,0.0011]
[1773152098610,1.2383215,2016.3,2015.6,0.5712768]
[1773152099167,4.95925076,2016.5,2015.6,0.5712768]
[1773152099512,2.46260602,2016.2,2015.6,0.5712768]
[1773152100380,2.46260602,2015.9,2015.1,0.0011]
[1773152100570,4.92521204,2016.0,2014.6,0.5701768]
[1773152100571,2.46260602,2015.2,2014.6,0.5701768]
[1773152100777,3.68975986,2015.8,2014.1,2.60409937]
[1773152100778,2.46260602,2015.0,2014.3,0.5701768]
[1773152100973,3.68975986,2015.8,2014.4,0.61981937]
[1773152100974,3.54860602,2015.5,2014.4,0.61981937]
[1773152101201,1.24044854,2015.4,2014.6,1.81108143]
[1773152101402,2.32641135,2015.5,2014.7,0.5701768]
[1773152101819,2.97718103,2015.4,2014.4,0.5701768]
[1773152102190,2.97718103,2015.4,2014.1,7.5690609]
[1773152102191,2.46260602,2014.8,2014.1,0.5701768]
[1773152102392,2.46260602,2014.8,2013.7,5.99286039]
[1773152102393,2.46260602,2014.8,2013.8,0.5701768]
[1773152102704,1.087,2014.9,2013.8,0.5701768]
[1773152102911,2.32744854,2015.4,2014.2,0.5701768]
[1773152103076,4.79005456,2015.4,2014.2,0.5701768]
[1773152103394,1.24019554,2015.9,2014.6,0.5701768]
[1773152103640,2.32708437,2016.0,2015.5,0.0011]
[1773152103933,2.46260602,2015.8,2015.3,0.0011]
[1773152104311,2.99301416,2015.8,2014.4,1.027]
[1773152104518,0.53040814,2015.7,2014.4,0.55711314]
[1773152104715,2.46260602,2015.7,2014.6,0.55711314]
[1773152104923,0.53040814,2016.1,2014.8,0.55711314]
[1773152105125,2.60375986,2016.5,2015.2,0.55711314]
[1773152105126,4.93058017,2016.5,2015.2,0.55711314]
[1773152105424,4.93058017,2016.5,2015.4,0.55711314]
[1773152105628,6.44291941,2017.0,2015.7,0.55711314]
[1773152105629,1.24048554,2017.0,2015.7,0.55711314]
[1773152105923,2.32748554,2017.0,2015.7,0.55711314]